[Event "68th Warsaw-ch-B 2019"]
[Site "Warsaw"]
[Date "2019.11.14"]
[Round "3.1"]
[White "Jaskulski, Jan"]
[Black "Podgorski, Maciej"]
[Result "0-1"]
[ECO "B92"]
[WhiteElo "1594"]
[BlackElo "1737"]
[Annotator "NA"]
[PlyCount "60"]
[EventDate "2019.11.14"]
[EventType "swiss"]
[EventCountry "POL"]
[SourceTitle "playchess.com"]
[Source "ChessBase"]
[SourceQuality "1"]
[TimeControl "5400+30"]

1. e4 {[%emt 0:29:39]} c5 {[%emt 0:29:37]} 2. Nf3 {[%emt 0:00:10]} d6 {[%emt 0:00:07]} 3. d4 {[%emt 0:00:09]} cxd4 {[%emt 0:00:05]} 4. Nxd4 {[%emt 0:00:05]} Nf6 {[%emt 0:00:04]} 5. Nc3 {[%emt 0:00:07]} a6 {[%emt 0:00:06]} 6. Be2 {[%emt 0:00:29]} e5 {[%emt 0:00:27]} 7. Nb3 {[%emt 0:00:14]} Be7 {[%emt 0:00:15]} 8. O-O {[%emt 0:00:17]} Be6 {[%emt 0:00:11]} 9. Be3 {[%emt 0:03:43]} Nbd7 {[%emt 0:00:34]} 10. f4 {[%emt 0:04:03]} Rc8 {[%emt 0:02:27]} 11. f5 {[%emt 0:09:02]} Bxb3 {[%emt 0:06:48]} 12. axb3 {[%emt 0:00:33]} O-O {[%emt 0:08:29]} 13. Bc4 {[%emt 0:03:20]} Nb6 {[%emt 0:01:03]} 14. Bd5 {[%emt 0:18:03]} Nfxd5 {[%emt 0:02:50]} 15. Nxd5 {[%emt 0:00:03]} Nxd5 {[%emt 0:00:08]} 16. Qxd5 {[%emt 0:00:06]} Bg5 {[%emt 0:04:02]} 17. Bxg5 {[%emt 0:02:01]} Qxg5 {[%emt 0:00:06]} 18. c3 {[%emt 0:00:21]} Rc6 {[%emt 0:07:40]} 19. Rf3 {[%emt 0:06:44]} Qf6 {[%emt 0:03:12]} 20. b4 {[%emt 0:03:48]} Rd8 {[%emt 0:01:56]} 21. Rd1 {[%emt 0:00:57]} h6 {[%emt 0:06:30]} 22. Rdf1 {[%emt 0:01:31]} Rdc8 {[%emt 0:01:59]} 23. Ra1 {[%emt 0:03:50]} R8c7 {[%emt 0:01:10]} 24. b5 {[%emt 0:01:20]} Rc5 {[%emt 0:01:05]} 25. bxa6 {[%emt 0:01:28]} Rxd5 {[%emt 0:00:25]} 26. a7 {[%emt 0:00:01]} Rd1+ {[%emt 0:00:31]} 27. Rxd1 {[%emt 0:01:04]} Rc8 {[%emt 0:00:31]} 28. c4 {[%emt 0:01:15]} Ra8 {[%emt 0:04:33]} 29. Ra1 {[%emt 0:00:10]} Qd8 {[%emt 0:00:17]} 30. Rb3 {[%emt 0:00:43]} Qc7 {[%emt 0:00:17]} 0-1

[Event "68th Warsaw-ch-B 2019"]
[Site "Warsaw"]
[Date "2019.11.14"]
[Round "3.2"]
[White "Jaworski, Jakub"]
[Black "Kwiek, Janusz"]
[Result "1-0"]
[ECO "A01"]
[WhiteElo "1646"]
[BlackElo "1496"]
[Annotator "NA"]
[PlyCount "43"]
[EventDate "2019.11.14"]
[EventType "swiss"]
[EventCountry "POL"]
[SourceTitle "playchess.com"]
[Source "ChessBase"]
[SourceQuality "1"]
[TimeControl "5400+30"]

1. b3 {[%emt 0:29:34]} Nc6 {[%emt 0:29:56]} 2. Bb2 {[%emt 0:00:10]} e5 {[%emt 0:00:36]} 3. e3 {[%emt 0:00:11]} Nf6 {[%emt 0:00:28]} 4. Nf3 {[%emt 0:00:09]} d6 {[%emt 0:02:54]} 5. d4 {[%emt 0:00:10]} e4 {[%emt 0:05:24]} 6. d5 {[%emt 0:00:07]} exf3 {[%emt 0:01:10]} 7. dxc6 {[%emt 0:00:06]} fxg2 {[%emt 0:02:09]} 8. Bxg2 {[%emt 0:00:11]} b6 {[%emt 0:00:15]} 9. Nc3 {[%emt 0:00:56]} Be7 {[%emt 0:00:50]} 10. Qd4 {[%emt 0:00:26]} O-O {[%emt 0:01:00]} 11. O-O-O {[%emt 0:00:23]} Be6 {[%emt 0:01:29]} 12. Rhg1 {[%emt 0:02:45]} Qc8 {[%emt 0:06:20]} 13. Bf3 {[%emt 0:01:34]} Kh8 {[%emt 0:07:21]} 14. Ne4 {[%emt 0:04:29]} Rg8 {[%emt 0:04:04]} 15. Nxf6 {[%emt 0:00:10]} Bxf6 {[%emt 0:01:21]} 16. Qxf6 {[%emt 0:00:06]} Qf8 {[%emt 0:00:54]} 17. Qh6 {[%emt 0:01:48]} f6 {[%emt 0:01:23]} 18. Qh4 {[%emt 0:00:06]} Qf7 {[%emt 0:01:47]} 19. Bh5 {[%emt 0:00:28]} Qf8 {[%emt 0:01:30]} 20. Bg6 {[%emt 0:01:05]} h6 {[%emt 0:00:18]} 21. Bd3 {[%emt 0:00:12]} a5 {[%emt 0:01:01]} 22. Qe4 1-0

[Event "68th Warsaw-ch-B 2019"]
[Site "Warsaw"]
[Date "2019.11.14"]
[Round "3.3"]
[White "Wiktorowski, Janusz"]
[Black "Klim, Filip"]
[Result "0-1"]
[ECO "D10"]
[WhiteElo "1426"]
[BlackElo "1634"]
[Annotator "NA"]
[PlyCount "64"]
[EventDate "2019.11.14"]
[EventType "swiss"]
[EventCountry "POL"]
[SourceTitle "playchess.com"]
[Source "ChessBase"]
[SourceQuality "1"]
[TimeControl "5400+30"]

1. d4 {[%emt 0:29:38]} d5 {[%emt 0:29:36]} 2. c4 {[%emt 0:00:08]} c6 {[%emt 0:00:05]} 3. Nc3 {[%emt 0:00:41]} Nf6 {[%emt 0:00:15]} 4. cxd5 {[%emt 0:01:01]} cxd5 {[%emt 0:00:43]} 5. Bg5 {[%emt 0:03:05]} e6 {[%emt 0:03:23]} 6. e3 {[%emt 0:00:54]} Be7 {[%emt 0:00:51]} 7. Nf3 {[%emt 0:01:38]} Nc6 {[%emt 0:01:09]} 8. Bd3 {[%emt 0:04:18]} O-O {[%emt 0:02:27]} 9. a3 {[%emt 0:00:51]} h6 {[%emt 0:02:59]} 10. Bf4 {[%emt 0:01:12]} Bd6 {[%emt 0:01:14]} 11. Bxd6 {[%emt 0:02:26]} Qxd6 {[%emt 0:00:10]} 12. Nb5 {[%emt 0:00:22]} Qe7 {[%emt 0:00:27]} 13. O-O {[%emt 0:01:35]} a6 {[%emt 0:02:00]} 14. Nc3 {[%emt 0:00:17]} e5 {[%emt 0:02:34]} 15. dxe5 {[%emt 0:01:18]} Nxe5 {[%emt 0:01:28]} 16. h3 {[%emt 0:02:00]} b5 {[%emt 0:03:34]} 17. Nxe5 {[%emt 0:05:44]} Qxe5 {[%emt 0:00:10]} 18. Qf3 {[%emt 0:04:11]} Bb7 {[%emt 0:02:39]} 19. Qf5 {[%emt 0:00:16]} Qd6 {[%emt 0:01:27]} 20. Ne2 {[%emt 0:09:27]} Rfe8 {[%emt 0:06:10]} 21. Nd4 {[%emt 0:01:47]} g6 {[%emt 0:06:20]} 22. Qf3 {[%emt 0:00:03]} Kg7 {[%emt 0:00:27]} 23. Rac1 {[%emt 0:05:37]} Rac8 {[%emt 0:01:30]} 24. Rxc8 {[%emt 0:04:29]} Rxc8 {[%emt 0:00:43]} 25. g4 {[%emt 0:04:02]} Nd7 {[%emt 0:04:04]} 26. Qe2 {[%emt 0:06:03]} Ne5 {[%emt 0:06:09]} 27. Bf5 {[%emt 0:00:07]} Re8 {[%emt 0:01:48]} 28. Bb1 {[%emt 0:02:50]} Qf6 {[%emt 0:03:54]} 29. Kg2 {[%emt 0:00:53]} Nc4 {[%emt 0:01:17]} 30. Qc2 {[%emt 0:01:36]} Rxe3 {[%emt 0:00:56]} 31. fxe3 {[%emt 0:01:33]} Nxe3+ {[%emt 0:00:13]} 32. Kh1 {[%emt 0:01:25]} Qxf1+ {[%emt 0:00:10]} 0-1

[Event "68th Warsaw-ch-B 2019"]
[Site "Warsaw"]
[Date "2019.11.14"]
[Round "3.4"]
[White "Mazurkiewicz, Wojciech"]
[Black "Gierech, Pawel"]
[Result "0-1"]
[ECO "B01"]
[WhiteElo "1557"]
[BlackElo "1652"]
[Annotator "NA"]
[PlyCount "82"]
[EventDate "2019.11.14"]
[EventType "swiss"]
[EventCountry "POL"]
[SourceTitle "playchess.com"]
[Source "ChessBase"]
[SourceQuality "1"]
[TimeControl "5400+30"]

1. e4 {[%emt 0:29:34]} d5 {[%emt 0:34:18]} 2. exd5 {[%emt 0:00:09]} Qxd5 {[%emt 0:00:10]} 3. Nc3 {[%emt 0:00:23]} Qa5 {[%emt 0:00:07]} 4. d4 {[%emt 0:00:09]} Nf6 {[%emt 0:00:16]} 5. Nf3 {[%emt 0:00:41]} Bg4 {[%emt 0:00:23]} 6. Bd2 {[%emt 0:00:37]} c6 {[%emt 0:00:39]} 7. Bc4 {[%emt 0:02:30]} e6 {[%emt 0:00:14]} 8. h3 {[%emt 0:05:43]} Bh5 {[%emt 0:00:53]} 9. O-O {[%emt 0:01:07]} Nbd7 {[%emt 0:03:06]} 10. Nd5 {[%emt 0:02:22]} Qd8 {[%emt 0:00:13]} 11. Nf4 {[%emt 0:00:35]} Bg6 {[%emt 0:03:05]} 12. Re1 {[%emt 0:05:41]} Nd5 {[%emt 0:00:44]} 13. Nxd5 {[%emt 0:02:49]} cxd5 {[%emt 0:00:08]} 14. Bxd5 {[%emt 0:00:36]} Qc7 {[%emt 0:01:24]} 15. c3 {[%emt 0:02:22]} O-O-O {[%emt 0:02:02]} 16. Bb3 {[%emt 0:03:29]} Bh5 {[%emt 0:01:49]} 17. Bg5 {[%emt 0:01:31]} f6 {[%emt 0:02:24]} 18. Bh4 {[%emt 0:00:12]} e5 {[%emt 0:00:22]} 19. Be6 {[%emt 0:13:43]} Kb8 {[%emt 0:02:16]} 20. Bg3 {[%emt 0:03:04]} Bd6 {[%emt 0:05:10]} 21. Bg4 {[%emt 0:02:15]} Bxg4 {[%emt 0:01:45]} 22. hxg4 {[%emt 0:00:02]} exd4 {[%emt 0:01:49]} 23. Bxd6 {[%emt 0:00:48]} Qxd6 {[%emt 0:00:06]} 24. Qxd4 {[%emt 0:01:04]} Qf8 {[%emt 0:09:49]} 25. Rad1 {[%emt 0:02:10]} h5 {[%emt 0:00:46]} 26. Qf4+ {[%emt 0:05:50]} Kc8 {[%emt 0:01:30]} 27. Qc4+ {[%emt 0:00:32]} Kb8 {[%emt 0:00:25]} 28. Qe6 {[%emt 0:02:33]} Nc5 {[%emt 0:08:14]} 29. Rxd8+ {[%emt 0:00:44]} Qxd8 {[%emt 0:00:09]} 30. Qf5 {[%emt 0:01:39]} hxg4 {[%emt 0:01:10]} 31. Qxg4 {[%emt 0:00:14]} Qc7 {[%emt 0:00:29]} 32. g3 {[%emt 0:00:43]} g5 {[%emt 0:02:46]} 33. Qf5 {[%emt 0:00:51]} Qc6 {[%emt 0:02:16]} 34. b4 {[%emt 0:02:51]} Nd7 {[%emt 0:01:06]} 35. Re3 {[%emt 0:02:07]} Ne5 {[%emt 0:01:33]} 36. Qe4 {[%emt 0:00:17]} Qxe4 {[%emt 0:00:20]} 37. Rxe4 {[%emt 0:00:04]} Nxf3+ {[%emt 0:00:06]} 38. Kg2 {[%emt 0:01:22]} f5 {[%emt 0:00:05]} 39. Re3 {[%emt 0:01:04]} g4 {[%emt 0:00:11]} 40. Kf1 {[%emt 0:00:12]} Rd8 {[%emt 0:00:30]} 41. Kg2 {[%emt 0:00:43]} Rd1 {[%emt 0:00:07]} 0-1

[Event "68th Warsaw-ch-B 2019"]
[Site "Warsaw"]
[Date "2019.11.14"]
[Round "3.5"]
[White "Winogrodzki, Jozef"]
[Black "Bartodziej, Bartosz"]
[Result "1-0"]
[ECO "B40"]
[WhiteElo "1415"]
[BlackElo "1734"]
[Annotator "NA"]
[PlyCount "85"]
[EventDate "2019.11.14"]
[EventType "swiss"]
[EventCountry "POL"]
[SourceTitle "playchess.com"]
[Source "ChessBase"]
[SourceQuality "1"]
[TimeControl "5400+30"]

1. e4 c5 {[%emt 0:29:09]} 2. Nf3 {[%emt 0:29:41]} e6 {[%emt 0:01:47]} 3. c4 {[%emt 0:00:00]} Nc6 {[%emt 0:00:30]} 4. Nc3 {[%emt 0:08:30]} Nf6 {[%emt 0:09:46]} 5. Be2 {[%emt 0:06:05]} d5 {[%emt 0:02:46]} 6. d3 {[%emt 0:00:38]} d4 {[%emt 0:01:26]} 7. Nb1 {[%emt 0:03:59]} e5 {[%emt 0:01:43]} 8. Bg5 {[%emt 0:01:06]} Be7 {[%emt 0:01:59]} 9. Nbd2 {[%emt 0:00:20]} O-O {[%emt 0:03:04]} 10. O-O {[%emt 0:04:05]} Be6 {[%emt 0:02:23]} 11. Ne1 {[%emt 0:04:39]} h6 {[%emt 0:00:07]} 12. Bxf6 {[%emt 0:01:45]} Bxf6 {[%emt 0:01:51]} 13. Bg4 {[%emt 0:01:17]} Qd7 {[%emt 0:02:48]} 14. h3 {[%emt 0:01:13]} a6 {[%emt 0:00:38]} 15. Bxe6 {[%emt 0:03:28]} Qxe6 {[%emt 0:03:58]} 16. Nc2 {[%emt 0:01:59]} Be7 {[%emt 0:02:55]} 17. g4 {[%emt 0:00:50]} b5 {[%emt 0:04:06]} 18. b3 {[%emt 0:01:16]} b4 {[%emt 0:01:24]} 19. a4 {[%emt 0:00:13]} bxa3 {[%emt 0:01:59]} 20. Rxa3 {[%emt 0:03:16]} Rfb8 {[%emt 0:03:13]} 21. Qe2 Nb4 22. Nxb4 {[%emt 0:02:09]} Rxb4 {[%emt 0:00:35]} 23. Kg2 {[%emt 0:01:16]} Bg5 {[%emt 0:00:47]} 24. Nf3 {[%emt 0:00:18]} Bf4 {[%emt 0:01:40]} 25. Rfa1 {[%emt 0:01:03]} Qb6 {[%emt 0:00:53]} 26. Qc2 {[%emt 0:00:42]} Qc6 27. Qa2 {[%emt 0:01:52]} Rb6 {[%emt 0:04:13]} 28. Ra5 {[%emt 0:01:22]} Rab8 {[%emt 0:01:39]} 29. Rxa6 {[%emt 0:02:52]} Rxa6 {[%emt 0:00:13]} 30. Qxa6 {[%emt 0:00:05]} Qxa6 {[%emt 0:00:04]} 31. Rxa6 {[%emt 0:00:21]} Rxb3 {[%emt 0:00:05]} 32. Rc6 {[%emt 0:00:15]} Rxd3 {[%emt 0:00:13]} 33. Rxc5 {[%emt 0:00:09]} f6 {[%emt 0:00:24]} 34. Rd5 {[%emt 0:00:57]} Rc3 {[%emt 0:01:15]} 35. c5 {[%emt 0:00:19]} Bc1 {[%emt 0:01:22]} 36. h4 {[%emt 0:01:05]} Ba3 {[%emt 0:01:18]} 37. g5 {[%emt 0:00:12]} hxg5 {[%emt 0:00:13]} 38. hxg5 {[%emt 0:00:05]} Kf7 {[%emt 0:01:30]} 39. gxf6 {[%emt 0:01:59]} gxf6 {[%emt 0:00:14]} 40. Nh4 {[%emt 0:01:33]} Rxc5 41. Rd7+ {[%emt 0:00:59]} Ke6 {[%emt 0:00:59]} 42. Ra7 {[%emt 0:00:03]} Bc1 {[%emt 0:00:46]} 43. Nf5 {[%emt 0:00:06]} 1-0

[Event "68th Warsaw-ch-B 2019"]
[Site "Warsaw"]
[Date "2019.11.15"]
[Round "4.1"]
[White "Podgorski, Maciej"]
[Black "Jaworski, Jakub"]
[Result "0-1"]
[ECO "C11"]
[WhiteElo "1737"]
[BlackElo "1646"]
[Annotator "NA"]
[PlyCount "50"]
[EventDate "2019.11.14"]
[EventType "swiss"]
[EventCountry "POL"]
[SourceTitle "playchess.com"]
[Source "ChessBase"]
[SourceQuality "1"]
[TimeControl "5400+30"]

1. e4 e6 {[%emt 0:30:03]} 2. d4 {[%emt 0:29:46]} d5 {[%emt 0:00:04]} 3. Nc3 {[%emt 0:00:09]} Nf6 {[%emt 0:00:08]} 4. Bg5 {[%emt 0:00:19]} dxe4 {[%emt 0:00:11]} 5. Nxe4 {[%emt 0:00:12]} Be7 {[%emt 0:00:05]} 6. Bd3 {[%emt 0:01:57]} Nxe4 {[%emt 0:01:20]} 7. Bxe7 {[%emt 0:00:05]} Qxe7 {[%emt 0:00:08]} 8. Bxe4 {[%emt 0:00:08]} Qb4+ {[%emt 0:00:30]} 9. c3 {[%emt 0:02:07]} Qxb2 {[%emt 0:00:16]} 10. Ne2 {[%emt 0:00:13]} Nd7 {[%emt 0:04:09]} 11. O-O {[%emt 0:05:39]} Qa3 {[%emt 0:00:43]} 12. f4 {[%emt 0:03:35]} O-O {[%emt 0:02:30]} 13. Rf3 {[%emt 0:01:50]} Nf6 {[%emt 0:01:57]} 14. Bc2 {[%emt 0:00:43]} Bd7 {[%emt 0:01:25]} 15. Rh3 {[%emt 0:03:00]} Bc6 {[%emt 0:04:10]} 16. c4 {[%emt 0:09:18]} Qb4 {[%emt 0:01:16]} 17. Ng3 {[%emt 0:28:11]} Qxc4 {[%emt 0:17:48]} 18. Rc1 {[%emt 0:00:11]} Qd5 {[%emt 0:02:05]} 19. Qe2 {[%emt 0:01:40]} Qxd4+ {[%emt 0:04:49]} 20. Kh1 {[%emt 0:00:00]} g6 {[%emt 0:00:15]} 21. Rf1 {[%emt 0:05:46]} Rfe8 {[%emt 0:03:46]} 22. Qe1 {[%emt 0:00:31]} Rad8 {[%emt 0:03:21]} 23. Rf2 {[%emt 0:01:41]} Ng4 {[%emt 0:03:12]} 24. Re2 {[%emt 0:00:04]} Bb5 {[%emt 0:00:19]} 25. Ne4 {[%emt 0:01:17]} Bxe2 {[%emt 0:00:36]} 0-1

[Event "68th Warsaw-ch-B 2019"]
[Site "Warsaw"]
[Date "2019.11.15"]
[Round "4.2"]
[White "Klim, Filip"]
[Black "Winogrodzki, Jozef"]
[Result "1/2-1/2"]
[ECO "B56"]
[WhiteElo "1634"]
[BlackElo "1415"]
[Annotator "NA"]
[PlyCount "97"]
[EventDate "2019.11.14"]
[EventType "swiss"]
[EventCountry "POL"]
[SourceTitle "playchess.com"]
[Source "ChessBase"]
[SourceQuality "1"]
[TimeControl "5400+30"]

1. e4 {[%emt 0:29:35]} c5 {[%emt 0:29:38]} 2. Nf3 {[%emt 0:00:04]} d6 {[%emt 0:00:06]} 3. d4 {[%emt 0:00:07]} cxd4 {[%emt 0:00:08]} 4. Nxd4 {[%emt 0:00:06]} Nf6 {[%emt 0:00:09]} 5. Nc3 {[%emt 0:00:10]} e5 {[%emt 0:00:09]} 6. Bb5+ {[%emt 0:02:19]} Bd7 {[%emt 0:00:15]} 7. Bxd7+ {[%emt 0:00:51]} Qxd7 {[%emt 0:00:09]} 8. Nf5 {[%emt 0:05:15]} Nxe4 {[%emt 0:00:18]} 9. Nxe4 {[%emt 0:00:07]} Qxf5 {[%emt 0:00:09]} 10. Nxd6+ {[%emt 0:00:37]} Bxd6 {[%emt 0:00:10]} 11. Qxd6 {[%emt 0:00:07]} Nc6 {[%emt 0:01:08]} 12. O-O {[%emt 0:11:01]} Rd8 {[%emt 0:00:49]} 13. Qc5 {[%emt 0:00:28]} Qe6 {[%emt 0:04:55]} 14. Be3 {[%emt 0:01:46]} f6 {[%emt 0:02:45]} 15. Rfd1 {[%emt 0:05:56]} Kf7 {[%emt 0:00:19]} 16. Qb5 {[%emt 0:01:41]} b6 {[%emt 0:04:33]} 17. Qa4 {[%emt 0:06:17]} Rd6 {[%emt 0:05:21]} 18. Rxd6 {[%emt 0:03:32]} Qxd6 {[%emt 0:00:43]} 19. h3 {[%emt 0:01:03]} Rd8 {[%emt 0:00:14]} 20. c4 {[%emt 0:01:17]} Rd7 {[%emt 0:01:42]} 21. a3 {[%emt 0:02:55]} Nd4 {[%emt 0:09:27]} 22. Kh1 {[%emt 0:05:06]} Nf5 {[%emt 0:00:42]} 23. c5 {[%emt 0:03:01]} Qd5 {[%emt 0:01:10]} 24. cxb6 {[%emt 0:06:23]} Nxe3 {[%emt 0:00:13]} 25. fxe3 {[%emt 0:00:23]} axb6 {[%emt 0:00:10]} 26. Qb4 {[%emt 0:00:46]} b5 {[%emt 0:02:30]} 27. Rc1 {[%emt 0:01:42]} Qd2 {[%emt 0:09:53]} 28. Qb3+ {[%emt 0:01:19]} Qd5 {[%emt 0:04:31]} 29. Qb4 {[%emt 0:01:01]} Qd2 {[%emt 0:00:13]} 30. Rc3 {[%emt 0:00:28]} Qe2 {[%emt 0:02:01]} 31. Rb3 {[%emt 0:02:00]} Rd2 {[%emt 0:01:55]} 32. Qg4 {[%emt 0:00:20]} Qxg4 {[%emt 0:02:00]} 33. hxg4 {[%emt 0:00:03]} Rd5 {[%emt 0:00:32]} 34. Kh2 {[%emt 0:00:23]} Ke6 {[%emt 0:01:26]} 35. Kg3 {[%emt 0:00:34]} Kd6 {[%emt 0:00:22]} 36. Kf3 {[%emt 0:01:02]} g6 {[%emt 0:02:26]} 37. e4 {[%emt 0:02:35]} Rc5 {[%emt 0:01:03]} 38. Rd3+ {[%emt 0:01:02]} Kc6 {[%emt 0:00:20]} 39. Rd2 {[%emt 0:02:30]} Rc1 {[%emt 0:01:13]} 40. g3 {[%emt 0:01:40]} Rc5 {[%emt 0:00:47]} 41. Rh2 {[%emt 0:00:36]} h5 {[%emt 0:01:13]} 42. gxh5 {[%emt 0:00:13]} gxh5 {[%emt 0:00:56]} 43. g4 {[%emt 0:01:44]} hxg4+ {[%emt 0:01:04]} 44. Kxg4 {[%emt 0:00:02]} Rc1 {[%emt 0:01:04]} 45. Kf3 {[%emt 0:00:41]} Kc5 {[%emt 0:00:40]} 46. Rh8 {[%emt 0:00:38]} Kb6 {[%emt 0:00:58]} 47. Rh2 {[%emt 0:01:01]} Kc5 {[%emt 0:01:28]} 48. Rh8 {[%emt 0:00:21]} Kb6 {[%emt 0:00:03]} 49. Rh2 {[%emt 0:00:07]} 1/2-1/2

[Event "68th Warsaw-ch-B 2019"]
[Site "Warsaw"]
[Date "2019.11.15"]
[Round "4.3"]
[White "Gierech, Pawel"]
[Black "Jaskulski, Jan"]
[Result "1-0"]
[ECO "B20"]
[WhiteElo "1652"]
[BlackElo "1594"]
[Annotator "NA"]
[PlyCount "101"]
[EventDate "2019.11.14"]
[EventType "swiss"]
[EventCountry "POL"]
[SourceTitle "playchess.com"]
[Source "ChessBase"]
[SourceQuality "1"]
[TimeControl "5400+30"]

1. e4 {[%emt 0:29:36]} c5 {[%emt 0:29:52]} 2. b4 {[%emt 0:00:26]} d5 {[%emt 0:06:57]} 3. e5 {[%emt 0:01:35]} Nc6 {[%emt 0:00:14]} 4. Nf3 {[%emt 0:02:14]} Bg4 {[%emt 0:02:04]} 5. e6 {[%emt 0:01:51]} Bxe6 {[%emt 0:06:36]} 6. bxc5 {[%emt 0:03:04]} Bg4 {[%emt 0:05:45]} 7. h3 {[%emt 0:00:22]} Bh5 {[%emt 0:00:18]} 8. c3 {[%emt 0:02:37]} e5 {[%emt 0:05:30]} 9. g4 {[%emt 0:00:45]} Bg6 {[%emt 0:00:20]} 10. Bb5 {[%emt 0:05:32]} Bxc5 {[%emt 0:05:56]} 11. Nxe5 {[%emt 0:01:34]} Bxf2+ {[%emt 0:01:10]} 12. Kf1 {[%emt 0:02:24]} Qf6 {[%emt 0:03:12]} 13. Qe2 {[%emt 0:01:51]} Bg3+ {[%emt 0:03:01]} 14. Nf3+ {[%emt 0:00:40]} Be4 {[%emt 0:01:44]} 15. Kg2 {[%emt 0:00:30]} Bc7 {[%emt 0:02:23]} 16. d3 {[%emt 0:00:24]} Qxf3+ {[%emt 0:00:02]} 17. Qxf3 {[%emt 0:00:08]} Bxf3+ {[%emt 0:00:08]} 18. Kxf3 {[%emt 0:00:03]} O-O-O {[%emt 0:00:55]} 19. d4 {[%emt 0:01:23]} Nf6 {[%emt 0:02:22]} 20. Bg5 {[%emt 0:00:32]} Rde8 {[%emt 0:00:33]} 21. Bxf6 {[%emt 0:00:30]} gxf6 {[%emt 0:00:09]} 22. Bd3 {[%emt 0:01:06]} Re7 {[%emt 0:01:57]} 23. Na3 {[%emt 0:01:00]} Rhe8 {[%emt 0:02:21]} 24. Nc2 {[%emt 0:00:06]} Ba5 {[%emt 0:00:11]} 25. c4 {[%emt 0:01:59]} dxc4 {[%emt 0:00:54]} 26. Bxc4 {[%emt 0:00:25]} Bc3 {[%emt 0:00:13]} 27. Rad1 {[%emt 0:00:13]} Nb4 {[%emt 0:03:47]} 28. Rh2 {[%emt 0:03:24]} Kb8 {[%emt 0:05:37]} 29. a3 {[%emt 0:03:49]} Nxc2 {[%emt 0:00:31]} 30. Rxc2 {[%emt 0:00:11]} Re3+ {[%emt 0:00:05]} 31. Kg2 {[%emt 0:00:18]} Rd8 {[%emt 0:03:27]} 32. Bd3 {[%emt 0:00:56]} Ba5 {[%emt 0:01:22]} 33. Bf5 {[%emt 0:00:18]} Rc3 {[%emt 0:00:21]} 34. Re2 {[%emt 0:02:08]} Bc7 {[%emt 0:02:18]} 35. Re7 {[%emt 0:02:18]} Rg3+ {[%emt 0:00:09]} 36. Kf2 {[%emt 0:00:16]} Rxh3 {[%emt 0:00:30]} 37. Rc1 {[%emt 0:03:45]} Bb6 {[%emt 0:01:13]} 38. Kg2 {[%emt 0:00:53]} Rxa3 {[%emt 0:00:12]} 39. Be4 {[%emt 0:00:18]} Re3 {[%emt 0:02:17]} 40. Rxb7+ {[%emt 0:00:10]} Ka8 {[%emt 0:00:10]} 41. Bc6 {[%emt 0:03:34]} a5 {[%emt 0:00:50]} 42. Re7+ {[%emt 0:01:09]} Kb8 {[%emt 0:00:24]} 43. Rxe3 {[%emt 0:00:06]} Rxd4 {[%emt 0:00:17]} 44. Re7 {[%emt 0:01:47]} Bc7 {[%emt 0:00:43]} 45. Bf3 {[%emt 0:01:27]} Rd2+ {[%emt 0:00:21]} 46. Re2 {[%emt 0:00:26]} Rd3 {[%emt 0:00:20]} 47. Rec2 {[%emt 0:00:52]} Bf4 {[%emt 0:00:11]} 48. Rb1+ {[%emt 0:00:08]} Ka7 {[%emt 0:00:11]} 49. Rb7+ {[%emt 0:00:22]} Ka6 {[%emt 0:00:14]} 50. Rcb2 {[%emt 0:00:28]} a4 {[%emt 0:00:23]} 51. Be2 {[%emt 0:00:18]} 1-0

[Event "68th Warsaw-ch-B 2019"]
[Site "Warsaw"]
[Date "2019.11.15"]
[Round "4.4"]
[White "Green, Daniel P."]
[Black "Prazmowski, Wlodzimierz"]
[Result "1-0"]
[ECO "D06"]
[WhiteElo "2240"]
[BlackElo "1523"]
[Annotator "NA"]
[PlyCount "57"]
[EventDate "2019.11.14"]
[EventType "swiss"]
[EventCountry "POL"]
[SourceTitle "playchess.com"]
[Source "ChessBase"]
[SourceQuality "1"]
[TimeControl "5400+30"]

1. d4 {[%emt 0:29:33]} d5 {[%emt 0:29:40]} 2. c4 {[%emt 0:00:12]} Nf6 {[%emt 0:00:07]} 3. cxd5 {[%emt 0:00:23]} Qxd5 {[%emt 0:02:31]} 4. Nc3 {[%emt 0:00:24]} Qd8 {[%emt 0:00:25]} 5. e4 {[%emt 0:02:33]} e6 {[%emt 0:00:04]} 6. Nf3 {[%emt 0:01:03]} c6 {[%emt 0:01:30]} 7. Bd3 {[%emt 0:01:27]} Be7 {[%emt 0:00:27]} 8. O-O {[%emt 0:01:42]} Nbd7 {[%emt 0:01:11]} 9. Bf4 {[%emt 0:03:02]} O-O {[%emt 0:00:46]} 10. Rc1 {[%emt 0:00:53]} b6 {[%emt 0:03:27]} 11. Re1 {[%emt 0:05:43]} Re8 {[%emt 0:00:14]} 12. a4 {[%emt 0:01:51]} Bb7 {[%emt 0:00:24]} 13. a5 {[%emt 0:01:04]} c5 {[%emt 0:00:36]} 14. d5 {[%emt 0:03:19]} exd5 {[%emt 0:01:03]} 15. exd5 {[%emt 0:00:07]} Nf8 {[%emt 0:01:18]} 16. d6 {[%emt 0:02:23]} Bxf3 {[%emt 0:01:36]} 17. gxf3 {[%emt 0:00:22]} Bxd6 {[%emt 0:01:42]} 18. Rxe8 {[%emt 0:00:14]} Nxe8 {[%emt 0:00:44]} 19. Bg3 {[%emt 0:05:49]} Bxg3 {[%emt 0:08:27]} 20. hxg3 {[%emt 0:00:13]} Qf6 {[%emt 0:00:53]} 21. Qb3 {[%emt 0:02:47]} Nc7 {[%emt 0:07:47]} 22. Kg2 {[%emt 0:03:56]} Ng6 {[%emt 0:03:32]} 23. axb6 {[%emt 0:05:03]} Qxb6 {[%emt 0:03:27]} 24. Qc2 {[%emt 0:01:46]} Rb8 {[%emt 0:01:49]} 25. Na4 {[%emt 0:02:02]} Qb4 {[%emt 0:02:58]} 26. Nxc5 {[%emt 0:03:38]} Qxb2 {[%emt 0:00:14]} 27. Nd7 {[%emt 0:00:22]} Qxc2 {[%emt 0:01:03]} 28. Rxc2 {[%emt 0:00:05]} Rb7 {[%emt 0:01:21]} 29. Be4 {[%emt 0:01:54]} 1-0